[Event "Live Chess"]
[Site "Chess.com"]
[Date "2024.06.01"]
[Round "-"]
[White "willc-h99"]
[Black "Dhaydon19"]
[Result "0-1"]
[WhiteElo "2612"]
[BlackElo "2692"]
[TimeControl "300"]
[EndTime "11:48:28 PDT"]
[Termination "Dhaydon19 won on time"]

1. d4 {[%clk 0:04:58.4]} 1... d6 {[%clk 0:04:59.7]} 2. Nf3 {[%clk 0:04:56.7]}
2... Nf6 {[%clk 0:04:59.4]} 3. g3 {[%clk 0:04:55.3]} 3... g6 {[%clk 0:04:59.1]}
4. Bg2 {[%clk 0:04:54.7]} 4... Bg7 {[%clk 0:04:58.8]} 5. O-O {[%clk 0:04:54.3]}
5... O-O {[%clk 0:04:58.5]} 6. c4 {[%clk 0:04:53.8]} 6... c6 {[%clk 0:04:58.2]}
7. Nc3 {[%clk 0:04:52]} 7... Nbd7 {[%clk 0:04:57.9]} 8. e4 {[%clk 0:04:49.1]}
8... Qc7 {[%clk 0:04:57.2]} 9. h3 {[%clk 0:04:48.2]} 9... e5 {[%clk 0:04:56.2]}
10. Re1 {[%clk 0:04:44.2]} 10... exd4 {[%clk 0:04:54.2]} 11. Nxd4 {[%clk
0:04:42.9]} 11... Re8 {[%clk 0:04:53.2]} 12. Bf4 {[%clk 0:04:42.1]} 12... Ne5
{[%clk 0:04:51.5]} 13. b3 {[%clk 0:04:36.1]} 13... a6 {[%clk 0:04:50.7]} 14. Rc1
{[%clk 0:04:35.2]} 14... Bd7 {[%clk 0:04:48]} 15. Be3 {[%clk 0:04:32.3]} 15...
c5 {[%clk 0:04:42.5]} 16. Nde2 {[%clk 0:04:27.6]} 16... Rad8 {[%clk 0:04:39.7]}
17. Nf4 {[%clk 0:04:25.6]} 17... Bc6 {[%clk 0:04:36]} 18. Nfd5 {[%clk
0:04:18.7]} 18... Bxd5 {[%clk 0:04:34.3]} 19. Nxd5 {[%clk 0:04:18.6]} 19... Nxd5
{[%clk 0:04:33.3]} 20. Qxd5 {[%clk 0:04:14.9]} 20... Nc6 {[%clk 0:04:32]} 21. f4
{[%clk 0:04:00.7]} 21... Bd4 {[%clk 0:04:25.9]} 22. Bxd4 {[%clk 0:03:55.6]}
22... Nxd4 {[%clk 0:04:25.1]} 23. Kh2 {[%clk 0:03:31.7]} 23... Kg7 {[%clk
0:04:23.7]} 24. h4 {[%clk 0:03:30.2]} 24... Rd7 {[%clk 0:04:21]} 25. h5 {[%clk
0:03:24.7]} 25... f6 {[%clk 0:04:13.9]} 26. b4 {[%clk 0:03:09.8]} 26... b6
{[%clk 0:04:10.4]} 27. Rcd1 {[%clk 0:02:48.5]} 27... a5 {[%clk 0:03:49.1]} 28.
a3 {[%clk 0:02:41.3]} 28... axb4 {[%clk 0:03:46.2]} 29. axb4 {[%clk 0:02:39.3]}
29... Rde7 {[%clk 0:03:44]} 30. Rxd4 {[%clk 0:02:19.1]} 30... cxd4 {[%clk
0:03:41.5]} 31. Qxd4 {[%clk 0:02:19]} 31... Rc8 {[%clk 0:03:39.5]} 32. h6+
{[%clk 0:02:10.9]} 32... Kxh6 {[%clk 0:03:35]} 33. Qxf6 {[%clk 0:02:09.3]} 33...
Rf7 {[%clk 0:03:34.1]} 34. Qg5+ {[%clk 0:02:04.5]} 34... Kg7 {[%clk 0:03:32.3]}
35. e5 {[%clk 0:02:00]} 35... dxe5 {[%clk 0:03:20.1]} 36. fxe5 {[%clk
0:01:42.7]} 36... h6 {[%clk 0:03:12.4]} 37. Qe3 {[%clk 0:01:38.5]} 37... Qxc4
{[%clk 0:03:06.3]} 38. e6 {[%clk 0:01:37.1]} 38... Re7 {[%clk 0:03:05.6]} 39.
Qe5+ {[%clk 0:01:35]} 39... Kh7 {[%clk 0:03:04.8]} 40. Qf6 {[%clk 0:01:33.1]}
40... Qc7 {[%clk 0:02:56.4]} 41. Be4 {[%clk 0:01:29.9]} 41... Rg8 {[%clk
0:02:55.1]} 42. Rf1 {[%clk 0:01:20.6]} 42... Qd6 {[%clk 0:02:50.6]} 43. Bd5
{[%clk 0:01:08.4]} 43... Rgg7 {[%clk 0:02:49.6]} 44. Qf3 {[%clk 0:00:56.8]}
44... Qxb4 {[%clk 0:02:46.3]} 45. Qg2 {[%clk 0:00:44.5]} 45... Qd6 {[%clk
0:02:40.2]} 46. Rf7 {[%clk 0:00:40.9]} 46... Rgxf7 {[%clk 0:02:32.5]} 47. exf7
{[%clk 0:00:38.5]} 47... Rd7 {[%clk 0:02:31.7]} 48. Qe4 {[%clk 0:00:30.1]} 48...
Rd8 {[%clk 0:02:26.2]} 49. Qe8 {[%clk 0:00:23]} 49... Kg7 {[%clk 0:02:24.6]} 50.
Qg8+ {[%clk 0:00:19.6]} 50... Kf6 {[%clk 0:02:21.7]} 51. Be4 {[%clk 0:00:15.7]}
51... Ke7 {[%clk 0:02:15.8]} 52. Qg7 {[%clk 0:00:06.6]} 52... Rf8 {[%clk
0:02:14.6]} 53. Bxg6 {[%clk 0:00:05.3]} 53... Qd2+ {[%clk 0:02:05.5]} 54. Kh3
{[%clk 0:00:04.9]} 54... Qg5 {[%clk 0:02:04.9]} 0-1

[Event "Live Chess"]
[Site "Chess.com"]
[Date "2024.06.01"]
[Round "-"]
[White "WelshTiger"]
[Black "booktrunk"]
[Result "1-0"]
[WhiteElo "2535"]
[BlackElo "1371"]
[TimeControl "300"]
[EndTime "11:48:43 PDT"]
[Termination "WelshTiger won by resignation"]

1. e4 {[%clk 0:04:55.6]} 1... b6 {[%clk 0:04:59.1]} 2. a3 {[%clk 0:04:53.2]}
2... Bb7 {[%clk 0:04:57]} 3. Nc3 {[%clk 0:04:52.9]} 3... c5 {[%clk 0:04:47.6]}
4. Nf3 {[%clk 0:04:47.7]} 4... h6 {[%clk 0:04:10.8]} 5. d4 {[%clk 0:04:44.6]}
5... cxd4 {[%clk 0:04:01.7]} 6. Nxd4 {[%clk 0:04:44.5]} 6... e6 {[%clk
0:03:50.8]} 7. Ndb5 {[%clk 0:04:32.7]} 7... a6 {[%clk 0:03:41.2]} 8. Nd6+ {[%clk
0:04:31.2]} 8... Bxd6 {[%clk 0:03:37]} 9. Qxd6 {[%clk 0:04:31.1]} 9... Ne7
{[%clk 0:03:32.9]} 10. Be3 {[%clk 0:04:27.1]} 10... Nc8 {[%clk 0:03:26.4]} 11.
Qg3 {[%clk 0:04:23.9]} 11... Rg8 {[%clk 0:03:18]} 12. Bxh6 {[%clk 0:04:17.1]}
12... Qf6 {[%clk 0:03:11.4]} 13. Be3 {[%clk 0:04:12.8]} 13... Nc6 {[%clk
0:03:05]} 14. f4 {[%clk 0:04:05.5]} 14... Nd4 {[%clk 0:02:57.7]} 15. Bd3 {[%clk
0:04:04.6]} 15... Nc6 {[%clk 0:02:52.3]} 16. e5 {[%clk 0:04:03.4]} 16... Qe7
{[%clk 0:02:50.5]} 17. Ne4 {[%clk 0:04:01.2]} 17... b5 {[%clk 0:02:45.4]} 18.
Nf6+ {[%clk 0:04:00.3]} 18... Kf8 {[%clk 0:02:37.7]} 19. Nxg8 {[%clk 0:03:50.4]}
19... Kxg8 {[%clk 0:02:37.6]} 20. h4 {[%clk 0:03:41.9]} 20... Na5 {[%clk
0:02:36]} 21. h5 {[%clk 0:03:39.8]} 21... Nc4 {[%clk 0:02:34.6]} 22. Bxc4 {[%clk
0:03:37.4]} 22... bxc4 {[%clk 0:02:32.5]} 23. h6 {[%clk 0:03:35.9]} 23... g6
{[%clk 0:02:31.6]} 24. f5 {[%clk 0:03:32.4]} 24... exf5 {[%clk 0:02:27.9]} 25.
Bg5 {[%clk 0:03:31.4]} 25... Qf8 {[%clk 0:02:19.2]} 26. h7+ {[%clk 0:03:30.6]}
1-0

[Event "Live Chess"]
[Site "Chess.com"]
[Date "2024.06.01"]
[Round "-"]
[White "Crowded_House"]
[Black "JanMur7"]
[Result "0-1"]
[WhiteElo "1744"]
[BlackElo "2283"]
[TimeControl "300"]
[EndTime "11:48:51 PDT"]
[Termination "JanMur7 won by resignation"]

1. d4 {[%clk 0:04:58.6]} 1... Nf6 {[%clk 0:04:58.3]} 2. Bg5 {[%clk 0:04:55.8]}
2... d5 {[%clk 0:04:55.3]} 3. e3 {[%clk 0:04:54.7]} 3... Ne4 {[%clk 0:04:53.7]}
4. Bh4 {[%clk 0:04:52.6]} 4... Bf5 {[%clk 0:04:49.6]} 5. Bd3 {[%clk 0:04:47.3]}
5... c6 {[%clk 0:04:41.4]} 6. Nf3 {[%clk 0:04:45.1]} 6... Qb6 {[%clk 0:04:37.6]}
7. b3 {[%clk 0:04:41.9]} 7... e6 {[%clk 0:04:35.1]} 8. O-O {[%clk 0:04:38.2]}
8... Bd6 {[%clk 0:04:31.9]} 9. c4 {[%clk 0:04:26.7]} 9... Qc7 {[%clk 0:04:20.9]}
10. c5 {[%clk 0:04:13]} 10... Be7 {[%clk 0:04:19.5]} 11. Bg3 {[%clk 0:04:10.1]}
11... Nxg3 {[%clk 0:04:17.9]} 12. hxg3 {[%clk 0:04:09.8]} 12... Bxd3 {[%clk
0:04:16.6]} 13. Qxd3 {[%clk 0:04:07.5]} 13... Nd7 {[%clk 0:04:12.8]} 14. Nc3
{[%clk 0:04:02.9]} 14... O-O {[%clk 0:04:09.5]} 15. b4 {[%clk 0:04:01.8]} 15...
e5 {[%clk 0:04:08.1]} 16. dxe5 {[%clk 0:03:57.1]} 16... Nxe5 {[%clk 0:04:07.2]}
17. Nxe5 {[%clk 0:03:55.7]} 17... Qxe5 {[%clk 0:04:06.8]} 18. Qd4 {[%clk
0:03:46.5]} 18... Qxd4 {[%clk 0:03:54.4]} 19. exd4 {[%clk 0:03:44.9]} 19... Bf6
{[%clk 0:03:52.7]} 20. Rad1 {[%clk 0:03:34.5]} 20... Rfe8 {[%clk 0:03:51.3]} 21.
Nb1 {[%clk 0:03:26.2]} 21... a5 {[%clk 0:03:46.8]} 22. a3 {[%clk 0:03:21.7]}
22... axb4 {[%clk 0:03:44.3]} 23. axb4 {[%clk 0:03:21]} 23... Ra4 {[%clk
0:03:43.1]} 24. Rfe1 {[%clk 0:03:06.6]} 24... Rxe1+ {[%clk 0:03:39.3]} 25. Rxe1
{[%clk 0:03:05.9]} 25... Kf8 {[%clk 0:03:39.2]} 26. Nd2 {[%clk 0:02:56.5]} 26...
Rxb4 {[%clk 0:03:28.6]} 27. Nf3 {[%clk 0:02:56]} 27... Bxd4 {[%clk 0:03:24.9]}
28. Nxd4 {[%clk 0:02:54.7]} 28... Rxd4 {[%clk 0:03:24.5]} 29. Rb1 {[%clk
0:02:52.5]} 29... Rc4 {[%clk 0:03:22.7]} 30. Rxb7 {[%clk 0:02:50.4]} 30... Rxc5
{[%clk 0:03:21.5]} 31. Rb8+ {[%clk 0:02:49.6]} 31... Ke7 {[%clk 0:03:19.7]} 32.
Rb7+ {[%clk 0:02:48.9]} 32... Kf6 {[%clk 0:03:17.3]} 33. Kf1 {[%clk 0:02:46.6]}
33... Rc2 {[%clk 0:03:14]} 34. Rd7 {[%clk 0:02:41.7]} 34... g6 {[%clk
0:03:12.8]} 35. Ke1 {[%clk 0:02:37.1]} 35... h5 {[%clk 0:03:10.4]} 36. Rd6+
{[%clk 0:02:32.8]} 36... Ke7 {[%clk 0:03:08.1]} 0-1

[Event "Live Chess"]
[Site "Chess.com"]
[Date "2024.06.01"]
[Round "-"]
[White "StoreySniper"]
[Black "matt1979"]
[Result "1-0"]
[WhiteElo "2552"]
[BlackElo "1374"]
[TimeControl "300"]
[EndTime "11:49:10 PDT"]
[Termination "StoreySniper won by resignation"]

1. c4 {[%clk 0:04:57.4]} 1... f5 {[%clk 0:04:56.3]} 2. g3 {[%clk 0:04:56.6]}
2... Nf6 {[%clk 0:04:55]} 3. Bg2 {[%clk 0:04:56.3]} 3... e5 {[%clk 0:04:47]} 4.
Nc3 {[%clk 0:04:55.7]} 4... d6 {[%clk 0:04:45.6]} 5. d3 {[%clk 0:04:52]} 5...
Be7 {[%clk 0:04:44.7]} 6. Nf3 {[%clk 0:04:51]} 6... O-O {[%clk 0:04:43.4]} 7. b4
{[%clk 0:04:46.5]} 7... c6 {[%clk 0:04:41.1]} 8. Bb2 {[%clk 0:04:41.5]} 8... Be6
{[%clk 0:04:31.9]} 9. Nd2 {[%clk 0:04:34.1]} 9... Qd7 {[%clk 0:04:28.3]} 10. b5
{[%clk 0:04:20]} 10... cxb5 {[%clk 0:04:21.3]} 11. cxb5 {[%clk 0:04:14.4]} 11...
a6 {[%clk 0:04:16.3]} 12. a4 {[%clk 0:04:10.7]} 12... axb5 {[%clk 0:04:13.2]}
13. axb5 {[%clk 0:04:09.5]} 13... Rxa1 {[%clk 0:03:59.7]} 14. Qxa1 {[%clk
0:04:07.4]} 14... Qc7 {[%clk 0:03:51.3]} 15. O-O {[%clk 0:03:55.8]} 15... Nbd7
{[%clk 0:03:48.5]} 16. Rc1 {[%clk 0:03:49.8]} 16... Qb6 {[%clk 0:03:38]} 17. Nc4
{[%clk 0:03:43.9]} 17... Bxc4 {[%clk 0:03:35.8]} 18. dxc4 {[%clk 0:03:43]} 18...
Ng4 {[%clk 0:03:30.2]} 19. e3 {[%clk 0:03:32.9]} 19... Nc5 {[%clk 0:03:18.4]}
20. Nd5 {[%clk 0:03:30]} 20... Qd8 {[%clk 0:03:14.9]} 21. h3 {[%clk 0:03:20.4]}
21... Nf6 {[%clk 0:03:10.4]} 22. Ba3 {[%clk 0:03:14.8]} 22... b6 {[%clk
0:02:55.1]} 23. Bxc5 {[%clk 0:03:12.1]} 23... dxc5 {[%clk 0:02:47.9]} 24. Qa7
{[%clk 0:03:02.2]} 24... Nxd5 {[%clk 0:02:43.6]} 25. Bxd5+ {[%clk 0:02:59.3]}
25... Kh8 {[%clk 0:02:41]} 26. Ra1 {[%clk 0:02:56.2]} 26... Qb8 {[%clk
0:02:30.5]} 27. Qxe7 {[%clk 0:02:53.3]} 27... Qe8 {[%clk 0:02:20.6]} 1-0

[Event "Live Chess"]
[Site "Chess.com"]
[Date "2024.06.01"]
[Round "-"]
[White "GEMdzq"]
[Black "elephantgerrald"]
[Result "1-0"]
[WhiteElo "2288"]
[BlackElo "753"]
[TimeControl "300"]
[EndTime "11:49:21 PDT"]
[Termination "GEMdzq won by checkmate"]

1. e4 {[%clk 0:04:57.6]} 1... e5 {[%clk 0:04:58.6]} 2. d4 {[%clk 0:04:55.9]}
2... exd4 {[%clk 0:04:57]} 3. c3 {[%clk 0:04:55.6]} 3... dxc3 {[%clk 0:04:55.4]}
4. Bc4 {[%clk 0:04:54.8]} 4... cxb2 {[%clk 0:04:54.1]} 5. Bxb2 {[%clk
0:04:54.7]} 5... Nf6 {[%clk 0:04:50.9]} 6. Nf3 {[%clk 0:04:47]} 6... Bc5 {[%clk
0:04:49]} 7. e5 {[%clk 0:04:40.4]} 7... Ng4 {[%clk 0:04:45.8]} 8. Bxf7+ {[%clk
0:04:39.2]} 8... Kxf7 {[%clk 0:04:43.6]} 9. Qd5+ {[%clk 0:04:38.9]} 9... Ke8
{[%clk 0:04:39.6]} 10. Qxc5 {[%clk 0:04:38.5]} 10... d6 {[%clk 0:04:35.7]} 11.
Qc2 {[%clk 0:04:13.5]} 11... dxe5 {[%clk 0:04:08.1]} 12. O-O {[%clk 0:04:11.8]}
12... Nc6 {[%clk 0:03:59.6]} 13. h3 {[%clk 0:04:08.3]} 13... Nf6 {[%clk
0:03:56.8]} 14. Nbd2 {[%clk 0:04:03.9]} 14... Nb4 {[%clk 0:03:46.8]} 15. Qb3
{[%clk 0:04:01.7]} 15... c5 {[%clk 0:03:42.8]} 16. Nxe5 {[%clk 0:03:59.7]} 16...
Rf8 {[%clk 0:03:34.1]} 17. Rfe1 {[%clk 0:03:57.3]} 17... Qxd2 {[%clk 0:03:19.1]}
18. Rad1 {[%clk 0:03:55.3]} 18... Qg5 {[%clk 0:03:08.6]} 19. Nc6+ {[%clk
0:03:50.8]} 19... Be6 {[%clk 0:02:53.1]} 20. Qxe6# {[%clk 0:03:49]} 1-0

[Event "Live Chess"]
[Site "Chess.com"]
[Date "2024.06.01"]
[Round "-"]
[White "ACM42"]
[Black "dhairyapandyauk"]
[Result "1-0"]
[WhiteElo "2208"]
[BlackElo "1628"]
[TimeControl "300"]
[EndTime "11:49:43 PDT"]
[Termination "ACM42 won by resignation"]

1. e4 {[%clk 0:04:58.8]} 1... e5 {[%clk 0:04:59.5]} 2. Nf3 {[%clk 0:04:57.3]}
2... Nc6 {[%clk 0:04:59.1]} 3. Bc4 {[%clk 0:04:55.2]} 3... Bc5 {[%clk
0:04:57.4]} 4. c3 {[%clk 0:04:52.4]} 4... d6 {[%clk 0:04:55.9]} 5. d4 {[%clk
0:04:51]} 5... exd4 {[%clk 0:04:55.3]} 6. cxd4 {[%clk 0:04:48.9]} 6... Bb4+
{[%clk 0:04:54.6]} 7. Bd2 {[%clk 0:04:46.7]} 7... Bxd2+ {[%clk 0:04:53.8]} 8.
Nbxd2 {[%clk 0:04:45.6]} 8... Nf6 {[%clk 0:04:52.1]} 9. O-O {[%clk 0:04:44.1]}
9... O-O {[%clk 0:04:50.8]} 10. h3 {[%clk 0:04:42.2]} 10... h6 {[%clk
0:04:49.8]} 11. Re1 {[%clk 0:04:39.2]} 11... Nd7 {[%clk 0:04:41.1]} 12. a3
{[%clk 0:04:27.2]} 12... Nb6 {[%clk 0:04:38.6]} 13. Bd3 {[%clk 0:04:18.6]} 13...
Qf6 {[%clk 0:04:33.3]} 14. e5 {[%clk 0:04:14]} 14... dxe5 {[%clk 0:04:30.8]} 15.
dxe5 {[%clk 0:04:13.3]} 15... Qf4 {[%clk 0:04:26.2]} 16. g3 {[%clk 0:03:48.6]}
16... Qa4 {[%clk 0:04:13.9]} 17. b3 {[%clk 0:03:42.9]} 17... Qa5 {[%clk
0:04:07.5]} 18. Qc2 {[%clk 0:03:25.3]} 18... Bxh3 {[%clk 0:04:03.8]} 19. Be4
{[%clk 0:02:54.6]} 19... Rad8 {[%clk 0:03:39.3]} 20. Nc4 {[%clk 0:02:27.4]}
20... Nxc4 {[%clk 0:03:26.4]} 21. Qxc4 {[%clk 0:02:26.1]} 21... Bg4 {[%clk
0:03:14.5]} 22. Bxc6 {[%clk 0:02:19.3]} 22... Be6 {[%clk 0:03:13.1]} 23. Qb5
{[%clk 0:02:08.7]} 23... Qc3 {[%clk 0:02:45.5]} 24. Be4 {[%clk 0:02:03.6]} 24...
c6 {[%clk 0:02:36.8]} 25. Qxb7 {[%clk 0:01:57.3]} 25... Bxb3 {[%clk 0:02:29.7]}
26. Rac1 {[%clk 0:01:47.9]} 26... Qb2 {[%clk 0:02:28.7]} 27. Rb1 {[%clk
0:01:45.2]} 27... Qxa3 {[%clk 0:02:26.6]} 28. Rxb3 {[%clk 0:01:40.2]} 1-0

[Event "Live Chess"]
[Site "Chess.com"]
[Date "2024.06.01"]
[Round "-"]
[White "educatedlad"]
[Black "Dhaydon19"]
[Result "0-1"]
[WhiteElo "1763"]
[BlackElo "2692"]
[TimeControl "300"]
[EndTime "11:49:45 PDT"]
[Termination "Dhaydon19 won by resignation"]

1. d4 {[%clk 0:04:58.8]} 1... c6 {[%clk 0:04:58.8]} 2. c4 {[%clk 0:04:56.3]}
2... d5 {[%clk 0:04:58.5]} 3. Nd2 {[%clk 0:04:54.8]} 3... Nf6 {[%clk 0:04:56.6]}
4. e4 {[%clk 0:04:47.9]} 4... dxe4 {[%clk 0:04:54.1]} 5. Qc2 {[%clk 0:04:41]}
5... Bf5 {[%clk 0:04:52.7]} 6. f3 {[%clk 0:04:37.7]} 6... Qxd4 {[%clk
0:04:50.9]} 7. Nb3 {[%clk 0:04:34.2]} 7... Qe5 {[%clk 0:04:44]} 8. f4 {[%clk
0:04:28]} 8... Qc7 {[%clk 0:04:41.1]} 9. Be3 {[%clk 0:04:24.5]} 9... e6 {[%clk
0:04:39.5]} 10. Nd4 {[%clk 0:04:22.5]} 10... Bg6 {[%clk 0:04:36.2]} 11. O-O-O
{[%clk 0:04:19.6]} 11... Ng4 {[%clk 0:04:34.1]} 12. Bf2 {[%clk 0:04:16.6]} 0-1

[Event "Live Chess"]
[Site "Chess.com"]
[Date "2024.06.01"]
[Round "-"]
[White "stevochess11"]
[Black "koekoekoe"]
[Result "0-1"]
[WhiteElo "1676"]
[BlackElo "2082"]
[TimeControl "300"]
[EndTime "11:49:58 PDT"]
[Termination "koekoekoe won by resignation"]

1. d4 {[%clk 0:04:57.2]} 1... d5 {[%clk 0:04:59.9]} 2. Nf3 {[%clk 0:04:55.8]}
2... Nf6 {[%clk 0:04:59.5]} 3. e3 {[%clk 0:04:53.5]} 3... Bg4 {[%clk 0:04:58.4]}
4. c4 {[%clk 0:04:50.8]} 4... e6 {[%clk 0:04:55.3]} 5. Qb3 {[%clk 0:04:48.9]}
5... Qc8 {[%clk 0:04:41.3]} 6. Ne5 {[%clk 0:04:45.4]} 6... Bf5 {[%clk
0:04:36.5]} 7. cxd5 {[%clk 0:04:38]} 7... Nxd5 {[%clk 0:04:33.3]} 8. Nc3 {[%clk
0:04:35.9]} 8... Nb6 {[%clk 0:04:23.6]} 9. Be2 {[%clk 0:04:23.2]} 9... N8d7
{[%clk 0:04:22.9]} 10. f4 {[%clk 0:04:20.9]} 10... Nxe5 {[%clk 0:04:19.2]} 11.
fxe5 {[%clk 0:04:19.7]} 11... Be7 {[%clk 0:04:15.1]} 12. O-O {[%clk 0:04:17.9]}
12... O-O {[%clk 0:04:13.1]} 13. Bd2 {[%clk 0:04:11.1]} 13... c6 {[%clk
0:04:12.3]} 14. Rac1 {[%clk 0:04:05.9]} 14... Qd7 {[%clk 0:04:05.4]} 15. Nd1
{[%clk 0:03:28]} 15... Bg5 {[%clk 0:03:58.4]} 16. Nf2 {[%clk 0:03:23]} 16...
Rad8 {[%clk 0:03:45.9]} 17. Nd3 {[%clk 0:03:20.1]} 17... Nd5 {[%clk 0:03:38.2]}
18. Nc5 {[%clk 0:03:13.6]} 18... Qc7 {[%clk 0:03:30.8]} 19. Be1 {[%clk
0:03:11.6]} 19... b6 {[%clk 0:03:22.7]} 20. Na6 {[%clk 0:02:57.8]} 20... Qc8
{[%clk 0:03:05.7]} 21. Nb4 {[%clk 0:02:05.2]} 21... Bxe3+ {[%clk 0:02:59.2]} 22.
Kh1 {[%clk 0:02:02.2]} 22... Bxc1 {[%clk 0:02:56.6]} 0-1

[Event "Live Chess"]
[Site "Chess.com"]
[Date "2024.06.01"]
[Round "-"]
[White "GwaryTek"]
[Black "Brooms1989"]
[Result "1-0"]
[WhiteElo "1901"]
[BlackElo "1095"]
[TimeControl "300"]
[EndTime "11:50:01 PDT"]
[Termination "GwaryTek won by resignation"]

1. d4 {[%clk 0:04:57.5]} 1... Nf6 {[%clk 0:04:58.3]} 2. c4 {[%clk 0:04:56.2]}
2... g6 {[%clk 0:04:57.2]} 3. Nc3 {[%clk 0:04:55.6]} 3... Bg7 {[%clk 0:04:56.2]}
4. e4 {[%clk 0:04:54.9]} 4... d6 {[%clk 0:04:54.4]} 5. Nge2 {[%clk 0:04:54.4]}
5... O-O {[%clk 0:04:53.5]} 6. Ng3 {[%clk 0:04:53.9]} 6... e5 {[%clk 0:04:50.8]}
7. d5 {[%clk 0:04:53.5]} 7... a5 {[%clk 0:04:48.3]} 8. h4 {[%clk 0:04:51]} 8...
Nbd7 {[%clk 0:04:41.4]} 9. Be2 {[%clk 0:04:49.2]} 9... Nc5 {[%clk 0:04:39.6]}
10. Bg5 {[%clk 0:04:47.4]} 10... h6 {[%clk 0:04:34.7]} 11. Be3 {[%clk
0:04:46.2]} 11... c6 {[%clk 0:04:19.6]} 12. Qd2 {[%clk 0:04:41.6]} 12... Qb6
{[%clk 0:04:13.9]} 13. O-O-O {[%clk 0:04:28.1]} 13... a4 {[%clk 0:04:00.2]} 14.
Kb1 {[%clk 0:04:21.7]} 14... Qa5 {[%clk 0:03:47.3]} 15. dxc6 {[%clk 0:04:07.8]}
15... bxc6 {[%clk 0:03:45.2]} 16. Qxd6 {[%clk 0:04:06.3]} 16... Nb3 {[%clk
0:03:10.9]} 17. Qxc6 {[%clk 0:03:27]} 1-0

[Event "Live Chess"]
[Site "Chess.com"]
[Date "2024.06.01"]
[Round "-"]
[White "IanCalvert2"]
[Black "gmnorfolk"]
[Result "0-1"]
[WhiteElo "1511"]
[BlackElo "2079"]
[TimeControl "300"]
[EndTime "11:50:03 PDT"]
[Termination "gmnorfolk won on time"]

1. b3 {[%clk 0:04:55.9]} 1... e5 {[%clk 0:04:58.7]} 2. Bb2 {[%clk 0:04:52.9]}
2... Nc6 {[%clk 0:04:58.6]} 3. e3 {[%clk 0:04:49.7]} 3... Nf6 {[%clk 0:04:10]}
4. Nf3 {[%clk 0:04:45.9]} 4... e4 {[%clk 0:04:07.4]} 5. Nd4 {[%clk 0:04:44]}
5... d5 {[%clk 0:04:02.3]} 6. Nxc6 {[%clk 0:04:39.6]} 6... bxc6 {[%clk
0:04:00.7]} 7. d3 {[%clk 0:04:38.6]} 7... exd3 {[%clk 0:03:57]} 8. Bxd3 {[%clk
0:04:28.5]} 8... Bd6 {[%clk 0:03:55.2]} 9. Nd2 {[%clk 0:04:24.2]} 9... Qe7
{[%clk 0:03:51.3]} 10. Qe2 {[%clk 0:04:02.3]} 10... a5 {[%clk 0:03:46.1]} 11. a4
{[%clk 0:03:57.2]} 11... Bg4 {[%clk 0:03:40.9]} 12. f3 {[%clk 0:03:52]} 12...
Bd7 {[%clk 0:03:39.2]} 13. e4 {[%clk 0:03:47.5]} 13... Be5 {[%clk 0:03:30.8]}
14. Bxe5 {[%clk 0:03:39.9]} 14... Qxe5 {[%clk 0:03:30.7]} 15. O-O {[%clk
0:03:37.5]} 15... O-O {[%clk 0:03:27]} 16. exd5 {[%clk 0:03:28.5]} 16... Qxe2
{[%clk 0:03:23.6]} 17. Bxe2 {[%clk 0:03:26.7]} 17... cxd5 {[%clk 0:03:23]} 18.
Bd3 {[%clk 0:03:25.5]} 18... c5 {[%clk 0:03:21.1]} 19. Rfe1 {[%clk 0:03:19.8]}
19... Be6 {[%clk 0:03:17]} 20. c4 {[%clk 0:03:06.1]} 20... Rfd8 {[%clk
0:03:13.8]} 21. Rad1 {[%clk 0:02:56.5]} 21... Rab8 {[%clk 0:03:11.3]} 22. cxd5
{[%clk 0:02:54.2]} 22... Nxd5 {[%clk 0:03:02.2]} 23. Bc4 {[%clk 0:02:46]} 23...
Nc3 {[%clk 0:02:59.5]} 24. Rc1 {[%clk 0:02:38]} 24... Rxd2 {[%clk 0:02:48]} 25.
Rxc3 {[%clk 0:02:35.9]} 25... Bxc4 {[%clk 0:02:47.9]} 26. Rxc4 {[%clk
0:02:27.1]} 26... h6 {[%clk 0:02:46.5]} 27. Re3 {[%clk 0:01:57.8]} 27... Rb2
{[%clk 0:02:40.7]} 28. Rxc5 {[%clk 0:01:53.7]} 28... Rd8 {[%clk 0:02:39.3]} 29.
Kf1 {[%clk 0:01:29.2]} 29... Rd1+ {[%clk 0:02:25.6]} 30. Re1 {[%clk 0:01:27.5]}
30... Rdd2 {[%clk 0:02:25]} 31. g4 {[%clk 0:01:16.8]} 31... Rxh2 {[%clk
0:02:22.2]} 32. Kg1 {[%clk 0:01:15.5]} 32... Rbg2+ {[%clk 0:02:21.2]} 33. Kf1
{[%clk 0:01:13.9]} 33... Rf2+ {[%clk 0:02:20.4]} 34. Kg1 {[%clk 0:01:12.8]}
34... Rhg2+ {[%clk 0:02:14.3]} 35. Kh1 {[%clk 0:01:10.9]} 35... Rg3 {[%clk
0:02:12.8]} 36. Rxa5 {[%clk 0:00:56.4]} 36... Rfxf3 {[%clk 0:02:02.5]} 37. Rf5
{[%clk 0:00:45.3]} 37... Rxf5 {[%clk 0:01:55.7]} 38. gxf5 {[%clk 0:00:42.3]}
38... Rxb3 {[%clk 0:01:55.3]} 39. Ra1 {[%clk 0:00:39.2]} 39... Rb6 {[%clk
0:01:49.4]} 40. a5 {[%clk 0:00:38.1]} 40... Ra6 {[%clk 0:01:48.2]} 41. Kg2
{[%clk 0:00:37.1]} 41... Kf8 {[%clk 0:01:47.8]} 42. Kf3 {[%clk 0:00:36.2]} 42...
Ke7 {[%clk 0:01:47.7]} 43. Ke4 {[%clk 0:00:31.5]} 43... Kd6 {[%clk 0:01:47]} 44.
Kd4 {[%clk 0:00:29.2]} 44... Kc6 {[%clk 0:01:45.2]} 45. Kc4 {[%clk 0:00:27.7]}
45... Ra7 {[%clk 0:01:43.7]} 46. a6 {[%clk 0:00:20.6]} 46... Kb6 {[%clk
0:01:41]} 47. Rg1 {[%clk 0:00:18.1]} 47... f6 {[%clk 0:01:39.4]} 48. Re1 {[%clk
0:00:12.6]} 48... Kxa6 {[%clk 0:01:31.9]} 49. Re6+ {[%clk 0:00:07.1]} 49... Ka5
{[%clk 0:01:31]} 50. Kc5 {[%clk 0:00:04.1]} 50... Rc7+ {[%clk 0:01:25.1]} 51.
Kd6 {[%clk 0:00:03]} 51... Rc1 {[%clk 0:01:22.9]} 52. Ke7 {[%clk 0:00:01.3]}
52... Rf1 {[%clk 0:01:18.2]} 0-1